bitfinex-derivatives/quotes_ETHF0:USTF0_20250220
["timestamp","ask_amount","ask_price","bid_price","bid_amount"]
[1740024705626,0.72866,2745.0,2744.7,2.39341]
[1740024706520,0.00546458,2745.1,2745.0,0.72865]
[1740024707522,0.00546458,2745.1,2744.7,1.6647]
[1740024707724,0.00546458,2745.1,2745.0,0.72865]
[1740024709630,0.00546458,2745.1,2744.7,1.6647]
[1740024710726,0.73409458,2745.1,2744.8,0.7287]
[1740024711229,0.72866,2745.0,2744.7,2.39341]
[1740024711929,0.72866,2745.0,2744.7,1.6647]
[1740024712131,0.72866,2745.0,2744.8,0.7287]
[1740024712327,0.73410458,2745.1,2744.8,0.7287]
[1740024713033,0.73410458,2745.1,2744.7,1.6647]
[1740024713034,0.00546458,2745.1,2744.7,1.6647]
[1740024713232,0.00546458,2745.1,2744.9,0.72865]
[1740024713427,0.73409458,2745.1,2744.9,0.72865]
[1740024713634,0.00546458,2745.1,2744.7,1.6647]
[1740024714030,0.00546458,2745.1,2744.9,0.72866]
[1740024714726,0.00546458,2745.1,2745.0,0.72865]
[1740024730342,0.00546458,2745.1,2744.8,3.2078]
[1740024730743,0.00546458,2745.1,2745.0,0.72865]
[1740024734242,0.00546458,2745.1,2744.8,3.2078]
[1740024734443,0.72866,2745.0,2744.8,3.2078]
[1740024734645,1.90098,2744.9,2744.8,3.2078]
[1740024734838,2.46008,2744.9,2744.8,3.2078]
[1740024735645,1.7314,2744.9,2744.8,3.2078]
[1740024736344,2.46008,2744.9,2744.8,3.2078]
[1740024736647,1.7314,2744.9,2744.8,3.2078]
[1740024738045,1.1723,2744.9,2744.8,3.2078]
[1740024738249,2.34946458,2745.1,2744.9,0.72868]
[1740024738444,2.34946458,2745.1,2745.0,0.5474]
[1740024738951,2.34946458,2745.1,2745.0,1.27605]
[1740024739142,2.34946458,2745.1,2745.0,0.5474]
[1740024740249,2.34946458,2745.1,2745.0,1.27605]
[1740024740750,2.34946458,2745.1,2745.0,0.5474]
[1740024741850,2.34946458,2745.1,2745.0,1.27605]
[1740024742653,2.34946458,2745.1,2745.0,0.5474]
[1740024743457,2.34946458,2745.1,2745.0,1.27605]
[1740024746651,0.00546458,2745.1,2745.0,1.27605]
[1740024750159,0.00546458,2745.1,2745.0,4.48385]
[1740024750860,2.96,2746.1,2745.8,0.72842]
[1740024751058,1.152,2746.6,2746.0,3.2078]
[1740024751059,1.1423,2746.6,2746.0,3.2078]
[1740024751258,0.5712,2746.5,2746.4,0.72827]
[1740024751559,20.205,2747.3,2746.7,0.7282]
[1740024751560,2.343,2747.1,2746.7,0.7282]
[1740024751760,2.343,2747.1,2746.6,0.72821]
[1740024751955,2.343,2747.1,2746.7,0.7282]
[1740024752160,2.34846458,2747.1,2746.6,0.73367458]
[1740024752347,3.07655458,2747.1,2746.6,0.00546458]
[1740024752553,0.72812,2747.0,2746.6,0.00546458]
[1740024752862,2.34846458,2747.1,2746.6,0.00546458]
[1740024753054,0.72812,2747.0,2746.6,0.00546458]
[1740024753561,2.343,2746.9,2746.6,0.00546458]
[1740024754856,3.07116,2746.9,2746.6,0.00546458]
[1740024755358,2.343,2746.9,2746.6,0.00546458]
[1740024755560,3.07115,2746.9,2746.6,0.00546458]
[1740024756664,2.343,2746.9,2746.6,0.00546458]
[1740024759072,2.343,2746.9,2746.6,0.73368458]
[1740024759260,2.343,2746.9,2746.6,0.00546458]
[1740024759458,2.343,2746.9,2746.7,0.5404]
[1740024760563,3.07116,2746.9,2746.7,0.5404]
[1740024761166,0.72817,2746.8,2746.7,0.5404]
[1740024761572,0.7282,2746.7,2746.6,0.00546458]
[1740024761866,1.1104,2746.7,2746.6,0.00546458]
[1740024763666,3.07117,2746.9,2746.6,0.54586458]
[1740024764069,0.72817,2746.8,2746.6,0.54586458]
[1740024764274,0.72817,2746.8,2746.6,0.00546458]
[1740024764474,2.343,2746.9,2746.6,0.00546458]
[1740024764772,0.7282,2746.7,2746.6,0.00546458]
[1740024765172,2.343,2746.9,2746.6,0.00546458]
[1740024765375,0.72819,2746.8,2746.6,0.00546458]
[1740024765675,0.7282,2746.7,2746.6,0.00546458]
[1740024771577,1.3035,2746.7,2746.6,0.00546458]
[1740024773278,0.7282,2746.7,2746.6,0.00546458]
[1740024776885,3.2078,2746.8,2746.6,0.00546458]
[1740024777074,5.5498,2746.8,2746.6,0.00546458]
[1740024777273,0.7282,2746.7,2746.6,0.00546458]
[1740024777875,6.27799,2746.8,2746.6,0.00546458]
[1740024778074,0.7282,2746.7,2746.6,0.00546458]
[1740024778374,6.27799,2746.8,2746.6,0.00546458]
[1740024778576,5.5498,2746.8,2746.6,0.00546458]
[1740024778878,0.7282,2746.7,2746.6,0.00546458]
[1740024780883,2.342,2746.9,2746.6,0.00546458]
[1740024781079,0.72819,2746.8,2746.6,0.00546458]
[1740024781285,2.342,2746.9,2746.6,0.00546458]
[1740024781588,0.72818,2746.8,2746.6,0.73368458]
[1740024781883,0.7282,2746.7,2746.6,0.00546458]
[1740024785482,0.72818,2746.8,2746.6,0.00546458]
[1740024785684,2.342,2747.0,2746.6,0.00546458]
[1740024785887,0.7282,2746.7,2746.6,0.00546458]
[1740024795090,0.7282,2746.7,2746.6,0.59146458]
[1740024799692,0.7282,2746.7,2746.6,0.00546458]
[1740024809803,3.0702,2746.7,2746.6,0.00546458]
[1740024822113,3.2078,2746.9,2746.6,0.73367458]
[1740024822305,2.342,2746.8,2746.6,0.73367458]
[1740024822505,3.07018,2746.8,2746.6,0.00546458]
[1740024822812,0.72818,2746.8,2746.6,0.00546458]
[1740024823210,0.72818,2746.8,2746.6,0.73368458]
[1740024823404,5.5498,2746.9,2746.6,0.00546458]
[1740024823611,0.72818,2746.8,2746.6,0.00546458]
[1740024824110,0.5484,2747.0,2746.6,0.00546458]
[1740024824111,2.342,2746.9,2746.6,0.00546458]
[1740024824309,3.07016,2746.9,2746.7,0.72819]
[1740024824510,2.342,2746.9,2746.8,0.5562]
[1740024825918,2.342,2746.9,2746.8,1.28437]
[1740024826606,2.342,2746.9,2746.8,0.5562]
[1740024827213,2.342,2746.9,2746.8,1.28437]
[1740024827411,2.342,2746.9,2746.8,0.5562]
[1740024828120,2.96546458,2747.1,2747.0,0.72812]
[1740024828121,0.00546458,2747.1,2747.0,0.72812]
[1740024828506,0.00546458,2747.1,2746.9,1.0827]
[1740024828708,0.00546458,2747.1,2746.6,0.00546458]
[1740024828912,0.00546458,2747.1,2746.7,0.5421]
[1740024829115,0.55476458,2747.1,2746.7,0.5421]
[1740024829311,0.72814,2747.0,2746.8,1.1056]
[1740024829518,2.341,2746.9,2746.8,1.1056]
[1740024829819,3.06915,2746.9,2746.8,1.1056]
[1740024831619,0.72817,2746.8,2746.7,0.5421]
[1740024831819,0.72817,2746.8,2746.7,1.0976]
[1740024842426,2.341,2746.9,2746.7,1.8258]
[1740024842628,3.06916,2746.9,2746.7,1.8258]
[1740024843020,3.06916,2746.9,2746.7,1.0976]
[1740024843528,0.72817,2746.8,2746.7,1.0976]
[1740024843723,2.341,2746.9,2746.7,1.0976]
[1740024843928,0.72817,2746.8,2746.7,1.0976]
[1740024844230,0.72817,2746.8,2746.7,1.8258]
[1740024844429,3.06916,2746.9,2746.7,1.8258]
[1740024845026,0.00546458,2747.1,2747.0,0.72812]
[1740024849832,0.00546458,2747.1,2746.9,0.72813]
[1740024850135,0.00546458,2747.1,2747.0,0.5805]
[1740024850329,0.00546458,2747.1,2747.0,1.30862]
[1740024854244,0.00546458,2747.1,2747.0,1.6018861]
[1740024854844,0.00546458,2747.1,2747.0,7.6018861]
[1740024855247,1.0844,2747.8,2747.4,0.72799]
[1740024855441,3.4254,2747.8,2747.5,1.6567]
[1740024855640,0.72793,2747.7,2747.5,1.6567]
[1740024856441,2.8795,2747.8,2747.5,1.6567]
[1740024856644,0.72796,2747.6,2747.5,1.6567]
[1740024857245,2.8795,2747.8,2747.5,1.6567]
[1740024857941,0.72796,2747.6,2747.5,1.6567]
[1740024858140,2.8795,2747.8,2747.5,1.6567]
[1740024858440,0.72793,2747.7,2747.5,1.6567]
[1740024858649,0.72796,2747.6,2747.5,1.6567]
[1740024860645,0.72796,2747.6,2747.5,1.1152]
[1740024869058,0.72796,2747.6,2747.5,0.558]
[1740024869355,0.72801,2747.4,2747.3,3.7889]
[1740024869946,0.72807,2747.2,2747.1,0.5848]
[1740024878056,0.72809,2747.1,2747.0,0.5552]
[1740024882363,0.72809,2747.1,2747.0,1.28332]
[1740024882765,0.5641,2747.2,2747.0,0.5552]
[1740024882958,0.72809,2747.1,2747.0,0.5552]
[1740024883357,2.34,2747.4,2747.1,0.72808]
[1740024883561,2.34,2747.3,2747.2,1.123]
[1740024883868,3.06804,2747.3,2747.2,1.123]
[1740024884461,3.06803,2747.4,2747.2,1.85107]
[1740024884662,2.34,2747.4,2747.2,1.123]
[1740024884860,0.72804,2747.3,2747.2,1.123]
[1740024885367,1.28284,2747.3,2747.2,1.123]
[1740024885863,1.81524,2747.3,2747.2,1.123]
[1740024886068,1.81524,2747.3,2747.2,0.5884]
[1740024890364,1.0872,2747.3,2747.0,3.763]
[1740024890571,0.72809,2747.1,2747.0,0.5552]
[1740024891667,1.0872,2747.3,2746.7,3.2078]
[1740024891876,0.72817,2746.8,2746.7,3.2078]
[1740024894471,0.7282,2746.7,2746.6,0.00546458]
[1740024895569,1.6627,2746.9,2746.6,0.00546458]
[1740024895874,2.34,2746.9,2746.6,0.00546458]
[1740024896074,2.34,2746.9,2746.7,0.72819]
[1740024896373,2.34,2746.9,2746.8,1.1353]
[1740024896374,3.06815,2746.9,2746.8,1.1353]
[1740024896568,2.34,2746.9,2746.8,1.7231]
[1740024896775,3.06815,2746.9,2746.8,1.7231]
[1740024897869,2.34,2746.9,2746.8,1.7231]
[1740024898271,3.06815,2746.9,2746.8,1.7231]
[1740024898570,2.34,2746.9,2746.8,1.7231]
[1740024898775,2.34,2746.9,2746.8,2.45127]
[1740024898975,2.34,2746.9,2746.8,1.7231]
[1740024899572,3.06815,2746.9,2746.8,1.7231]
[1740024899972,2.34,2746.9,2746.8,1.7231]
[1740024901279,2.34,2746.9,2746.8,2.45127]
[1740024901486,3.2078,2747.1,2747.0,0.72812]
[1740024901776,6.89582,2747.4,2747.0,0.72812]
[1740024902077,2.34,2747.2,2747.0,0.72812]
[1740024902277,2.34,2747.3,2747.0,0.72812]
[1740024902476,2.34,2747.3,2746.8,1.7231]
[1740024902774,3.2078,2747.4,2747.3,0.72804]
[1740024902979,3.2078,2747.4,2747.2,0.72805]
[1740024903174,3.2078,2747.4,2747.3,1.86674]
[1740024903475,3.2078,2747.7,2747.4,0.72801]
[1740024903675,3.2078,2747.7,2747.3,1.1387]
[1740024903872,3.2078,2747.7,2747.4,0.5402]
[1740024904076,3.93575,2747.7,2747.4,0.5402]
[1740024904381,0.72797,2747.6,2747.4,0.5402]
[1740024904578,0.72797,2747.6,2747.4,1.2682]
[1740024904769,0.72797,2747.6,2747.4,0.5402]
[1740024906081,0.72797,2747.6,2747.4,1.26821]
[1740024906477,5.5478,2747.7,2747.4,1.2682]
[1740024906676,0.72795,2747.7,2747.4,1.2682]
[1740024906879,3.06695,2747.7,2747.4,0.5402]
[1740024907383,3.06695,2747.7,2747.4,1.2682]
[1740024907775,2.339,2747.7,2747.4,0.5402]
[1740024907975,2.339,2747.7,2747.5,0.72797]
[1740024907976,3.06695,2747.7,2747.5,0.72797]
[1740024908176,3.06695,2747.7,2747.4,1.2682]
[1740024908480,0.72797,2747.6,2747.4,1.2682]
[1740024908682,3.06695,2747.7,2747.4,1.2682]
[1740024909684,2.339,2747.7,2747.4,0.5402]
[1740024909977,3.06695,2747.7,2747.4,1.2682]
[1740024910878,2.339,2747.7,2747.4,1.2682]
[1740024911082,3.06695,2747.7,2747.4,0.5402]
[1740024911382,3.06695,2747.7,2747.4,1.2682]
[1740024911883,0.5375,2747.6,2747.5,0.72799]
[1740024913081,3.7721,2748.0,2747.4,0.5402]
[1740024913280,3.2078,2748.0,2747.8,0.72791]
[1740024913686,3.7439,2748.0,2747.8,0.72791]
[1740024913887,3.7439,2748.0,2747.7,0.72792]
[1740024914080,3.7439,2748.0,2747.8,1.84551]
[1740024914287,3.2078,2748.0,2747.8,1.84551]
[1740024914487,5.5468,2748.0,2747.8,1.84551]
[1740024914781,6.27467,2748.0,2747.8,1.84551]
[1740024914989,0.72787,2748.0,2747.8,1.84551]
[1740024915285,3.06684,2748.1,2747.8,1.84551]
[1740024915589,2.339,2748.1,2747.8,1.84551]
[1740024916084,4.47169,2748.3,2747.8,2.43171]
[1740024916285,2.339,2748.2,2747.8,2.43171]
[1740024917189,0.5361,2748.3,2747.8,2.43171]
[1740024917386,0.5313,2748.5,2747.8,1.99495366]
[1740024917591,3.59804,2748.5,2748.1,3.2078]
[1740024917790,3.59804,2748.5,2748.2,1.0791]
[1740024917989,0.72775,2748.4,2748.2,1.0791]
[1740024918488,0.72778,2748.3,2748.2,1.0791]
[1740024919786,3.2078,2748.4,2748.0,0.00546458]
[1740024919989,0.72783,2748.1,2748.0,0.00546458]
[1740024920380,3.06683,2748.1,2748.0,0.00546458]
[1740024921288,6.27463,2748.1,2748.0,0.00546458]
[1740024928503,5.5468,2748.1,2747.3,1.1156]
[1740024928694,0.72798,2747.6,2747.3,1.84363]
[1740024928895,3.06695,2747.7,2747.3,1.84363]
[1740024929398,0.72797,2747.6,2747.3,1.84363]
[1740024930292,3.06694,2747.7,2747.5,0.72798]
[1740024930493,3.06694,2747.7,2747.6,0.5823]
[1740024933298,0.5695,2747.8,2747.6,0.5823]
[1740024933497,2.338,2747.7,2747.6,1.31024]
[1740024934106,3.06593,2747.7,2747.6,0.5823]
[1740024934307,2.338,2747.7,2747.6,1.31026]
[1740024934599,3.06593,2747.7,2747.6,0.5823]
[1740024934899,0.72793,2747.7,2747.6,0.5823]
[1740024935601,3.06592,2747.8,2747.6,1.31024]
[1740024936900,1.099,2748.0,2747.8,0.72789]
[1740024937094,5.5458,2748.1,2747.9,0.5399]
[1740024937298,0.72754,2749.2,2748.6,0.72768]
[1740024937498,6.082,2749.4,2748.7,3.2078]
[1740024937802,0.72757,2749.1,2748.7,44.0078]
[1740024938004,3.4253,2749.3,2748.7,44.0078]
[1740024938195,3.4253,2749.3,2748.7,3.2078]
[1740024938506,0.72759,2749.1,2748.7,3.21326458]
[1740024938695,0.72759,2749.1,2748.7,44.01326458]
[1740024939302,2.338,2749.2,2748.7,44.01326458]
[1740024939502,0.5328,2749.3,2748.7,44.01326458]
[1740024939704,2.8708,2749.3,2748.8,0.72763]
[1740024939903,3.59832,2749.3,2748.8,0.72763]
[1740024940298,0.72754,2749.2,2748.8,0.72763]
[1740024940508,0.72754,2749.2,2748.9,1.1668]
[1740024940707,2.8708,2749.3,2748.9,1.1668]
[1740024941205,0.72759,2749.0,2748.9,1.1668]
[1740024943607,0.72758,2749.1,2748.9,1.1668]
[1740024943805,0.72759,2749.1,2749.0,3.2078]
[1740024944506,0.72755,2749.2,2749.0,3.2078]
[1740024944716,3.59833,2749.3,2749.0,3.2078]
[1740024944913,2.338,2749.5,2749.0,3.93537]
[1740024945211,2.96,2749.6,2749.2,0.72753]
[1740024945401,3.68745,2749.6,2749.2,0.72753]
[1740024945606,2.96,2749.6,2749.0,3.2078]
[1740024945814,0.72756,2749.1,2749.0,3.2078]
[1740024946112,3.06552,2749.3,2749.0,3.2078]
[1740024946412,0.72756,2749.1,2749.0,3.2078]
[1740024947805,1.26305,2749.2,2749.0,3.2078]
[1740024948007,3.06552,2749.3,2749.1,0.5661]
[1740024948207,3.7433,2750.3,2749.5,0.72745]
[1740024948408,3.7433,2750.3,2749.8,3.2078]
[1740024948409,4.3157,2750.3,2749.8,3.2078]
[1740024948816,4.3157,2750.3,2749.9,41.3365]
[1740024948817,5.04295,2750.3,2749.9,41.3365]
[1740024949009,0.72732,2750.1,2749.9,40.8]
[1740024949307,0.72741,2749.7,2749.6,0.00545425]
[1740024949513,6.6617,2750.3,2749.6,0.00545425]
[1740024949514,2.352,2749.8,2749.6,0.00545425]
[1740024949713,0.72741,2749.7,2749.6,0.00545425]
[1740024950116,1.27131,2749.7,2749.6,0.00545425]
[1740024951115,3.62231,2749.7,2749.6,0.00545425]
[1740024951321,2.351,2749.7,2749.6,0.00545425]
[1740024952008,3.07841,2749.7,2749.6,0.00545425]
[1740024952310,0.72741,2749.7,2749.6,0.00545425]
[1740024953210,5.02575,2750.6,2749.6,0.00545425]
[1740024953409,0.5337,2750.3,2749.8,3.2078]
[1740024953610,0.5337,2750.3,2749.9,0.5771]
[1740024954012,0.72733,2750.0,2749.9,0.5771]
[1740024956413,3.7415,2750.3,2749.6,1.11965425]
[1740024956617,0.72741,2749.7,2749.6,1.11965425]
[1740024959319,0.72741,2749.7,2749.6,0.00545425]
[1740024960515,1.26881,2749.7,2749.6,0.00545425]
[1740024963521,0.72759,2749.0,2748.9,3.2078]
[1740024963724,0.72767,2748.7,2748.6,3.2078]
[1740024964422,0.72772,2748.5,2748.4,1.6692]
[1740024964617,3.07872,2748.5,2748.4,0.00545425]
[1740024966221,0.72788,2747.9,2747.8,3.2078]
[1740024966427,2.355,2747.9,2747.5,3.2078]
[1740024966723,0.5651,2747.8,2747.5,3.2078]
[1740024966927,1.29302,2747.8,2747.5,3.2078]
[1740024967230,0.5651,2747.8,2747.5,3.2078]
[1740024967725,1.29303,2747.8,2747.5,3.2078]
[1740024968926,0.5651,2747.8,2747.5,3.2078]
[1740024969120,3.2078,2748.6,2747.5,3.2078]
[1740024969321,2.889,2748.5,2748.3,3.2078]
[1740024969825,2.889,2748.5,2748.0,3.2078]
[1740024970219,0.72783,2748.1,2748.0,3.2078]
[1740024970525,3.08483,2748.1,2748.0,3.2078]
[1740024971223,2.357,2748.1,2748.0,3.2078]
[1740024972919,0.534,2748.5,2748.0,3.2078]
[1740024973118,2.89,2748.5,2748.1,0.72782]
[1740024973419,2.356,2748.5,2748.1,1.27032]
[1740024973624,0.72771,2748.6,2748.1,1.27032]
[1740024973823,2.356,2748.6,2748.4,0.72775]
[1740024974026,0.56851981,2748.9,2748.5,0.5869]
[1740024974228,0.00541981,2748.9,2748.5,0.5869]
[1740024974426,0.00541981,2748.9,2748.8,0.72764]
[1740024974928,0.00541981,2748.9,2748.8,6.72764]
[1740024975116,1.28465,2749.9,2749.2,0.72752]
[1740024975318,2.361,2749.8,2749.4,3.93527]
[1740024975725,3.93512,2750.1,2749.5,0.72745]
[1740024975923,5.5708,2750.1,2749.5,1.85685]
[1740024976121,6.29811,2750.1,2749.5,1.85685]
[1740024976326,6.30356425,2750.1,2749.5,1.86230425]
[1740024976529,0.00545425,2750.1,2749.8,3.2078]
[1740024976729,0.72735,2749.9,2749.8,3.2078]
[1740024978930,0.72733,2750.0,2749.8,3.2078]
[1740024979323,0.72735,2749.9,2749.8,3.2078]
[1740024990430,0.5448,2750.0,2749.5,3.21325425]
[1740024990631,2.352,2749.9,2749.5,3.21325425]
[1740024991037,0.72739,2749.8,2749.5,3.21325425]
[1740024991443,2.352,2749.9,2749.5,3.21325425]
[1740024991634,0.72742,2749.7,2749.5,3.21325425]
[1740024992635,0.72741,2749.7,2749.5,3.94069425]
[1740024993244,0.72743,2749.6,2749.5,3.21325425]
[1740024993442,2.35945425,2750.1,2749.5,3.21325425]
[1740024993643,0.72741,2749.7,2749.5,3.21325425]
[1740024993944,0.72741,2749.7,2749.5,3.94070425]
[1740024995637,0.72743,2749.6,2749.5,3.21325425]
[1740024996038,2.35945425,2750.1,2749.5,3.21325425]
[1740024996239,0.72743,2749.7,2749.5,3.21325425]
[1740024996640,2.35945425,2750.1,2749.5,3.21325425]
[1740024996838,0.72743,2749.6,2749.5,3.21325425]
[1740024997141,3.07843,2749.6,2749.5,0.00545425]
[1740024997945,3.07843,2749.6,2749.5,3.21325425]
[1740025001850,3.07843,2749.6,2749.5,0.00545425]
[1740025002752,0.72751,2749.3,2749.2,3.2078]
[1740025002946,0.72762,2749.0,2748.9,3.2078]
[1740025004146,0.72758,2749.1,2748.9,3.2078]
[1740025004347,3.07859,2749.0,2748.9,3.2078]
[1740025004547,2.351,2749.0,2748.9,3.2078]
[1740025005248,3.07859,2749.0,2748.9,3.2078]
[1740025006450,2.351,2749.0,2748.9,3.2078]
[1740025006750,2.351,2749.0,2748.9,3.93542]
[1740025008954,3.66175,2749.2,2749.0,0.72758]
[1740025009155,3.66175,2749.2,2748.9,3.9354]
[1740025010057,2.9342,2749.2,2748.9,3.9354]
[1740025010355,3.66175,2749.2,2748.9,3.9354]
[1740025010650,0.5857,2749.3,2748.9,3.2078]
[1740025010851,2.9337,2749.3,2749.2,3.2078]
[1740025011154,0.5321,2749.6,2749.3,0.72751]
[1740025011350,0.5321,2749.6,2749.2,3.2078]
[1740025011553,0.72751,2749.3,2749.2,3.2078]
[1740025016154,1.28161,2749.3,2749.2,3.2078]
[1740025016356,0.5541,2749.3,2749.2,3.2078]
[1740025016657,1.28161,2749.3,2749.2,3.2078]
[1740025016850,0.5541,2749.3,2749.2,3.2078]
[1740025017154,1.28161,2749.3,2749.2,3.2078]
[1740025021255,0.5541,2749.3,2749.2,3.2078]
[1740025021753,2.347,2749.4,2749.2,3.2078]
[1740025021957,3.0745,2749.4,2749.2,3.2078]
[1740025022161,0.72751,2749.3,2749.2,3.2078]
[1740025030268,2.347,2749.4,2749.3,0.72751]
[1740025030566,2.347,2749.4,2749.3,1.30771]
[1740025030768,2.338,2749.5,2749.3,1.89451]
[1740025031063,0.72748,2749.4,2749.3,1.167]
[1740025031266,0.72748,2749.4,2749.3,0.5802]
[1740025032164,0.72748,2749.4,2749.2,3.2078]
[1740025032360,0.72751,2749.3,2749.2,3.2078]
[1740025033269,2.338,2749.5,2749.2,3.2078]
[1740025033470,0.72751,2749.3,2749.2,3.93534]
[1740025033668,0.72751,2749.3,2749.2,3.2078]
[1740025040073,0.7275,2749.4,2749.2,3.93531]
[1740025040275,0.7275,2749.4,2749.2,3.93533]
[1740025040467,0.72748,2749.4,2749.2,3.2078]
[1740025040771,0.72751,2749.3,2749.2,3.2078]
[1740025041162,0.72751,2749.3,2749.2,3.93532]
[1740025041367,0.7275,2749.4,2749.2,3.93532]
[1740025041569,2.338,2749.5,2749.2,3.2078]
[1740025041771,0.72751,2749.3,2749.2,3.2078]
[1740025042875,2.338,2749.5,2749.2,3.93534]
[1740025043078,0.72751,2749.3,2749.2,3.2078]
[1740025043974,2.338,2749.5,2749.3,0.72751]
[1740025044174,3.06548,2749.5,2749.3,1.30261]
[1740025044677,2.338,2749.5,2749.3,0.5751]
[1740025044877,0.72748,2749.4,2749.3,0.5751]
[1740025047570,3.06548,2749.5,2749.3,1.30261]
[1740025047878,0.72748,2749.4,2749.3,0.5751]
[1740025048177,2.338,2749.5,2749.3,0.5751]
[1740025048178,3.06548,2749.5,2749.3,0.5751]
[1740025048571,2.338,2749.5,2749.3,0.5751]
[1740025048773,0.5321,2749.6,2749.3,0.5751]
[1740025048973,0.72747,2749.5,2749.3,1.3026]
[1740025049175,3.59655,2749.6,2749.4,0.72748]
[1740025049480,3.59655,2749.6,2749.4,1.29478]
[1740025049783,3.59655,2749.6,2749.5,3.2078]
[1740025058080,1.25955,2749.6,2749.5,3.2078]
[1740025058282,3.59655,2749.6,2749.5,3.2078]
[1740025062188,0.5321,2749.6,2749.5,3.93526]
[1740025062392,2.337,2749.6,2749.5,3.93526]
[1740025062691,2.337,2749.6,2749.5,4.3935261]
[1740025062894,2.337,2749.6,2749.5,3.6660661]
[1740025063087,2.337,2749.6,2749.5,4.3935261]
[1740025063282,3.06443,2749.6,2749.5,3.6660661]
[1740025063593,3.06443,2749.6,2749.5,3.2078]
[1740025063895,2.337,2749.6,2749.5,3.2078]
[1740025064396,3.06443,2749.6,2749.5,3.2078]
[1740025064593,3.60903,2749.6,2749.5,3.2078]
[1740025064896,1.27203,2749.6,2749.5,3.2078]
[1740025069200,0.5446,2749.6,2749.5,3.2078]
[1740025069600,1.27203,2749.6,2749.5,3.2078]
[1740025073497,3.60903,2749.6,2749.5,3.2078]
[1740025077904,0.72751,2749.3,2749.2,3.2078]
[1740025079705,0.72756,2749.1,2749.0,3.2078]
[1740025079906,2.337,2749.1,2749.0,3.2078]
[1740025080606,3.06456,2749.1,2749.0,3.2078]
[1740025081206,2.337,2749.1,2749.0,3.93539]
[1740025081411,2.337,2749.2,2749.0,3.7695]
[1740025081604,2.337,2749.2,2749.1,0.72756]
[1740025085600,2.337,2749.2,2749.0,3.2078]
[1740025085806,2.337,2749.2,2748.7,0.00545425]
[1740025086113,0.72764,2748.8,2748.7,0.00545425]
[1740025086312,3.06464,2748.8,2748.7,0.00545425]
[1740025091612,0.5383,2749.0,2748.7,0.00545425]
[1740025091811,2.337,2748.9,2748.7,0.00545425]
[1740025092011,0.72762,2748.9,2748.7,0.00545425]
[1740025092212,2.337,2748.8,2748.7,0.00545425]
[1740025092812,3.06464,2748.8,2748.7,0.00545425]
[1740025093421,2.337,2748.8,2748.7,0.00545425]
[1740025093918,3.06464,2748.8,2748.7,0.00545425]
[1740025095522,3.65174,2748.8,2748.7,0.00545425]
[1740025097714,6.61174,2748.8,2748.7,0.00545425]
[1740025097919,0.72772,2748.5,2748.4,3.2078]
[1740025099928,1.27842,2748.5,2748.4,3.2078]
[1740025101527,0.5507,2748.5,2748.2,0.00545425]
[1740025101725,0.72778,2748.3,2748.2,0.00545425]
[1740025102431,1.26258,2748.3,2748.2,0.00545425]
[1740025102829,0.72778,2748.3,2748.2,0.00545425]
[1740025103224,2.338,2748.4,2748.2,0.00545425]
[1740025103421,0.72778,2748.3,2748.2,0.00545425]
[1740025110242,3.68778,2748.3,2748.2,0.00545425]
[1740025110447,0.72796,2747.6,2747.5,3.77]
[1740025113247,3.06594,2747.7,2747.5,3.77]
[1740025113445,2.338,2747.7,2747.5,4.49799]
[1740025113751,2.338,2747.8,2747.7,0.72793]
[1740025114844,2.338,2747.9,2747.8,0.7279]
[1740025115147,2.338,2748.0,2747.8,3.9357]
[1740025115335,2.338,2748.0,2747.9,0.5797]
[1740025115541,2.338,2748.0,2747.9,1.1458]
[1740025115847,0.00545425,2748.7,2747.9,1.1458]
[1740025116042,0.72779,2748.3,2748.0,0.5782]
[1740025116247,2.338,2748.2,2748.0,0.5782]
[1740025116442,2.338,2748.5,2748.1,3.2078]
[1740025116638,0.53895425,2748.7,2748.4,0.72773]
[1740025116840,2.338,2748.6,2748.5,1.0782]
[1740025117348,2.34345425,2748.7,2748.5,1.0782]
[1740025117742,0.7277,2748.6,2748.5,1.0782]
[1740025119245,2.34345425,2748.7,2748.4,3.2078]
[1740025119450,2.34345425,2748.7,2748.0,41.3782]
[1740025119451,2.34345425,2748.7,2748.1,3.7825]
[1740025119641,0.7278,2748.2,2748.1,3.2078]
[1740025119952,3.0658,2748.2,2748.1,3.2078]
[1740025120454,2.338,2748.2,2748.1,3.2078]
[1740025120844,2.338,2748.2,2748.1,3.93563]
[1740025121443,2.338,2748.5,2748.2,0.72779]
[1740025121749,2.338,2748.5,2748.2,0.5747]
[1740025121750,0.72778,2748.3,2748.2,0.5747]
[1740025122749,2.338,2748.5,2748.2,0.5747]
[1740025122947,2.9074,2748.5,2748.2,0.5747]
[1740025123147,2.9074,2748.5,2748.1,3.2078]
[1740025123350,3.2078,2748.2,2747.5,3.2078]
[1740025123651,0.72787,2748.0,2747.5,3.93578]
[1740025124044,0.72789,2747.9,2747.5,3.2078]
[1740025124349,2.895,2748.1,2747.5,3.2078]
[1740025124944,0.72796,2747.6,2747.5,3.2078]
[1740025125139,3.06596,2747.6,2747.5,3.2078]
[1740025125739,2.338,2747.6,2747.5,3.2078]
[1740025127350,3.06596,2747.6,2747.5,3.2078]
[1740025128445,2.338,2747.6,2747.5,3.2078]
[1740025128648,3.06596,2747.6,2747.5,3.2078]
[1740025129655,2.338,2747.6,2747.5,3.2078]
[1740025130355,3.06596,2747.6,2747.5,3.2078]